bitfinex-derivatives/quotes_BTCF0:USTF0_20241104
["timestamp","ask_amount","ask_price","bid_price","bid_amount"]
[1730692207930,0.024,69172.0,69171.0,0.33351182]
[1730692208139,0.024,69172.0,69171.0,0.26124224]
[1730692208436,0.05701378,69172.0,69171.0,0.16452589]
[1730692208631,0.50478706,69184.0,69183.0,0.072311]
[1730692208830,0.58758012,69184.0,69183.0,0.16351289]
[1730692209931,0.60158012,69184.0,69183.0,0.16451289]
[1730692210443,0.45759306,69184.0,69183.0,0.16451289]
[1730692210830,0.47059306,69184.0,69183.0,0.16551289]
[1730692211129,0.42619802,69184.0,69183.0,0.16551289]
[1730692212837,0.06539802,69184.0,69183.0,0.16551289]
[1730692213242,0.06539802,69184.0,69183.0,0.52631289]
[1730692213435,0.027,69184.0,69183.0,0.52631289]
[1730692214433,0.024,69184.0,69183.0,0.52631289]
[1730692214832,0.024,69184.0,69183.0,0.61751478]
[1730692215050,0.018,69184.0,69183.0,0.52631289]
[1730692215853,0.018,69184.0,69183.0,0.61751478]
[1730692216154,0.3608,69199.0,69198.0,0.072296]
[1730692216332,0.3608,69199.0,69198.0,0.16349789]
[1730692217444,0.3718,69199.0,69198.0,0.16449789]
[1730692217937,0.3718,69199.0,69198.0,0.25569978]
[1730692218140,0.3718,69199.0,69198.0,0.16549789]
[1730692218547,0.011,69199.0,69198.0,0.16549789]
[1730692220341,0.011,69199.0,69198.0,0.20815438]
[1730692221952,0.011,69199.0,69198.0,0.16549789]
[1730692222145,0.011,69199.0,69198.0,0.074296]
[1730692222743,0.011,69199.0,69198.0,0.16549789]
[1730692223448,0.08375618,69199.0,69198.0,0.16549789]
[1730692223646,0.08375618,69199.0,69198.0,0.25669978]
[1730692224537,0.08375618,69199.0,69198.0,0.16549789]
[1730692226339,0.011,69199.0,69198.0,0.16549789]
[1730692226545,0.08380036,69199.0,69198.0,0.16549789]
[1730692228454,0.17500225,69199.0,69198.0,0.074296]
[1730692228658,0.12823294,69199.0,69198.0,0.0403715]
[1730692229859,0.1270242,69199.0,69198.0,0.0403715]
[1730692230053,0.29052109,69199.0,69198.0,0.0403715]
[1730692230254,0.21822609,69199.0,69186.0,0.09120189]
[1730692230454,0.0723,69194.0,69193.0,0.072301]
[1730692230657,0.0723,69194.0,69193.0,0.16350289]
[1730692231459,0.0723,69194.0,69193.0,0.072301]
[1730692231963,0.0723,69194.0,69193.0,0.073301]
[1730692232967,0.145861,69199.0,69193.0,0.13993433]
[1730692233168,0.145861,69199.0,69193.0,0.21323533]
[1730692233169,0.003,69194.0,69193.0,0.21323533]
[1730692233859,0.0753,69194.0,69193.0,0.074301]
[1730692234061,0.0753,69194.0,69189.0,0.13893433]
[1730692234062,0.072304,69190.0,69189.0,0.072304]
[1730692234867,0.0324,69193.0,69185.0,0.3608]
[1730692235060,0.0324,69193.0,69192.0,0.072302]
[1730692235971,0.0364,69193.0,69192.0,0.072302]
[1730692236262,0.004,69193.0,69192.0,0.21123633]
[1730692236766,0.145861,69199.0,69198.0,0.072296]
[1730692237071,0.042221,69199.0,69198.0,0.072296]
[1730692237265,0.0324,69200.0,69199.0,0.072295]
[1730692237563,0.104694,69200.0,69199.0,0.072295]
[1730692239075,0.072295,69199.0,69198.0,0.002]
[1730692239265,0.072295,69199.0,69198.0,0.001]
[1730692239769,0.072295,69199.0,69193.0,0.072301]
[1730692240067,0.0723,69194.0,69193.0,0.072301]
[1730692241161,0.0723,69194.0,69193.0,0.073301]
[1730692242660,0.0783,69194.0,69193.0,0.074301]
[1730692243173,0.12225617,69194.0,69193.0,0.074301]
[1730692245472,0.072305,69190.0,69189.0,0.072305]
[1730692245663,0.59142678,69190.0,69189.0,0.072305]
[1730692245970,0.60057114,69190.0,69189.0,0.072305]
[1730692246666,0.60457114,69190.0,69189.0,0.073305]
[1730692246869,0.60657114,69190.0,69189.0,0.074305]
[1730692247073,0.53426614,69190.0,69189.0,0.074305]
[1730692248470,0.69844099,69190.0,69189.0,0.074305]
[1730692248675,0.55470072,69190.0,69189.0,0.074305]
[1730692250168,0.33763939,69190.0,69189.0,0.074305]
[1730692250576,0.19390072,69190.0,69189.0,0.074305]
[1730692250769,0.11125408,69190.0,69189.0,0.074305]
[1730692251465,0.14948796,69190.0,69189.0,0.074305]
[1730692252565,0.11125408,69190.0,69189.0,0.074305]
[1730692253475,0.078304,69190.0,69189.0,0.074305]
[1730692256677,0.078304,69190.0,69189.0,0.002]
[1730692256981,0.65083833,69190.0,69189.0,0.002]
[1730692257178,0.71533833,69190.0,69189.0,0.002]
[1730692260579,0.83000634,69190.0,69189.0,0.002]
[1730692262482,0.82983755,69190.0,69189.0,0.002]
[1730692263588,0.97357552,69190.0,69189.0,0.002]
[1730692263780,0.82983755,69190.0,69189.0,0.002]
[1730692265292,0.97353605,69190.0,69189.0,0.002]
[1730692266077,0.82983755,69190.0,69189.0,0.002]
[1730692266385,0.97352681,69190.0,69189.0,0.002]
[1730692267493,0.88171446,69190.0,69189.0,0.00112487]
[1730692267678,0.88171446,69190.0,69183.0,0.00216801]
[1730692267679,0.07231,69184.0,69183.0,0.00216801]
[1730692267879,0.072321,69174.0,69172.0,0.072323]
[1730692268178,0.072322,69173.0,69172.0,0.072323]
[1730692268377,0.18682122,69173.0,69172.0,0.072323]
[1730692268572,0.072322,69173.0,69172.0,0.11564738]
[1730692268783,0.072322,69173.0,69172.0,0.11564718]
[1730692269580,0.072322,69173.0,69172.0,0.072323]
[1730692269779,0.072318,69177.0,69176.0,0.072318]
[1730692270674,0.072315,69181.0,69180.0,0.072312]
[1730692271083,0.072311,69184.0,69183.0,0.07231]
[1730692271284,0.3608,69185.0,69182.0,0.04331087]
[1730692271482,0.3608,69185.0,69184.0,0.07231]
[1730692272382,0.007,69185.0,69184.0,0.07231]
[1730692272888,0.012,69185.0,69184.0,0.07331]
[1730692274487,0.005,69185.0,69184.0,0.07331]
[1730692274689,0.011,69185.0,69184.0,0.07431]
[1730692275277,0.011,69185.0,69184.0,0.13197834]
[1730692275483,0.011,69185.0,69184.0,0.07431]
[1730692277492,0.011,69185.0,69184.0,0.11763768]
[1730692277995,0.011,69185.0,69184.0,0.07431]
[1730692278194,0.011,69185.0,69184.0,0.11763768]
[1730692278397,0.011,69185.0,69184.0,0.07431]
[1730692282598,0.011,69185.0,69184.0,0.11763768]
[1730692282790,0.011,69185.0,69184.0,0.21324433]
[1730692283103,0.011,69185.0,69184.0,0.25657201]
[1730692283290,0.011,69185.0,69184.0,0.69021201]
[1730692283492,0.011,69185.0,69184.0,0.64688433]
[1730692284187,0.08223638,69185.0,69184.0,0.64688433]
[1730692285301,0.04394537,69185.0,69184.0,0.21324433]
[1730692285802,0.04416927,69185.0,69184.0,0.21324433]
[1730692288201,0.04416927,69185.0,69184.0,0.07431]
[1730692288605,0.011,69185.0,69184.0,0.07431]
[1730692288795,0.08252012,69185.0,69184.0,0.07431]
[1730692289691,0.04416927,69185.0,69184.0,0.07431]
[1730692290307,0.04416927,69185.0,69184.0,0.21324433]
[1730692296706,0.04430612,69185.0,69184.0,0.21324433]
[1730692298403,0.08298714,69185.0,69184.0,0.21324433]
[1730692298713,0.011,69185.0,69184.0,0.21324433]
[1730692299405,0.011,69185.0,69184.0,0.1654868]
[1730692300110,0.011,69185.0,69184.0,0.23757223]
[1730692301200,0.011,69185.0,69184.0,0.33398313]
[1730692301602,0.011,69185.0,69184.0,0.23757223]
[1730692303217,0.011,69185.0,69184.0,0.33397493]
[1730692303412,0.011,69185.0,69184.0,0.23757223]
[1730692303714,0.011,69185.0,69184.0,0.14639543]
[1730692303903,0.011,69185.0,69184.0,0.1654868]
[1730692304617,0.011,69185.0,69184.0,0.07431]
[1730692304802,0.083309,69185.0,69184.0,0.07431]
[1730692307121,0.083309,69185.0,69184.0,0.1654868]
[1730692308124,0.011,69185.0,69184.0,0.1654868]
[1730692309314,0.011,69185.0,69184.0,0.07431]
[1730692313908,0.08255448,69185.0,69184.0,0.07431]
[1730692314304,0.11295448,69185.0,69184.0,0.07431]
[1730692316612,0.12694475,69185.0,69184.0,0.07431]
[1730692316824,0.04411103,69185.0,69184.0,0.07431]
[1730692318920,0.0442677,69185.0,69184.0,0.07431]
[1730692320616,0.011,69185.0,69184.0,0.07431]
[1730692320925,0.011,69185.0,69184.0,0.17077761]
[1730692322219,0.011,69185.0,69184.0,0.17073024]
[1730692322622,0.011,69185.0,69184.0,0.24303032]
[1730692324220,0.011,69185.0,69184.0,0.24303012]
[1730692324428,0.011,69185.0,69184.0,0.24303036]
[1730692324823,0.011,69185.0,69184.0,0.14661018]
[1730692325029,0.011,69185.0,69184.0,0.07431]
[1730692329422,0.011,69185.0,69184.0,0.16549213]
[1730692330732,0.011,69185.0,69184.0,0.07431]
[1730692331027,0.083309,69185.0,69184.0,0.002]
[1730692331237,0.115109,69185.0,69184.0,0.05984722]
[1730692331433,0.115109,69185.0,69184.0,0.002]
[1730692332235,0.115109,69185.0,69184.0,0.07431]
[1730692335835,0.18712485,69185.0,69184.0,0.07431]
[1730692336031,0.18712513,69185.0,69184.0,0.07431]
[1730692341033,0.18725276,69185.0,69184.0,0.07431]
[1730692343941,0.115109,69185.0,69184.0,0.07431]
[1730692350848,0.18704188,69185.0,69184.0,0.07431]
[1730692355042,0.115109,69185.0,69184.0,0.07431]
[1730692355249,0.18718087,69185.0,69184.0,0.07431]
[1730692358857,0.115109,69185.0,69184.0,0.07431]
[1730692366046,0.18733758,69185.0,69184.0,0.07431]
[1730692369462,0.25945163,69185.0,69184.0,0.07431]
[1730692369663,0.18722305,69185.0,69184.0,0.07431]
[1730692370861,0.18722305,69185.0,69184.0,0.002]
[1730692374072,0.115109,69185.0,69184.0,0.002]
[1730692377371,0.115109,69185.0,69184.0,0.07430018]
[1730692377562,0.083309,69185.0,69184.0,0.002]
[1730692377968,0.083309,69185.0,69184.0,0.07430018]
[1730692378174,0.083309,69185.0,69184.0,0.002]
[1730692379373,0.083309,69185.0,69184.0,0.07430018]
[1730692379877,0.083309,69185.0,69184.0,0.002]
[1730692381060,0.11669838,69185.0,69184.0,0.002]
[1730692381668,0.68020174,69185.0,69173.0,0.04341634]
[1730692381872,0.68020174,69185.0,69166.0,0.36156]
[1730692381873,0.09118213,69174.0,69166.0,0.36156]
[1730692382173,0.09118213,69172.0,69166.0,0.3608]
[1730692382474,0.03283548,69171.0,69166.0,0.3608]
[1730692382772,0.03283548,69170.0,69169.0,0.072326]
[1730692382971,0.072324,69172.0,69171.0,0.072322]
[1730692383187,0.072324,69172.0,69171.0,0.16350413]
[1730692383979,0.072319,69176.0,69175.0,0.072319]
[1730692384178,0.072319,69176.0,69175.0,0.52430113]
[1730692385266,0.075319,69176.0,69175.0,0.52430113]
[1730692386661,0.003,69176.0,69175.0,1.04916326]
[1730692386871,0.3608,69186.0,69175.0,1.04916326]
[1730692386872,0.072308,69186.0,69175.0,1.04916326]
[1730692387072,0.072308,69186.0,69185.0,0.45198213]
[1730692387769,0.00216847,69191.0,69187.0,0.072306]
[1730692387971,0.00216847,69191.0,69190.0,0.09118213]
[1730692388972,0.00216847,69191.0,69190.0,0.18742438]
[1730692388973,0.07447147,69191.0,69190.0,0.18742438]
[1730692389371,0.07447147,69191.0,69190.0,0.18842438]
[1730692389372,0.07947147,69191.0,69190.0,0.18842438]
[1730692389577,0.077303,69191.0,69190.0,0.27960651]
[1730692389767,0.005,69191.0,69190.0,0.35191051]
[1730692390073,0.005,69191.0,69190.0,0.90003252]
[1730692390276,0.072296,69198.0,69190.0,0.39412852]
[1730692390479,0.072296,69198.0,69197.0,0.072297]
[1730692390693,0.072296,69198.0,69197.0,0.16853925]
[1730692391068,0.072296,69198.0,69197.0,0.09624225]
[1730692391366,0.09118213,69200.0,69195.0,0.08665056]
[1730692391571,0.3608,69202.0,69197.0,0.07218453]
[1730692391572,0.072296,69198.0,69197.0,0.07218453]
[1730692392170,0.072297,69197.0,69196.0,0.07218453]
[1730692392585,0.072299,69195.0,69191.0,0.07218453]
[1730692392768,0.072303,69191.0,69190.0,0.001]
[1730692393073,0.16348513,69191.0,69190.0,0.001]
[1730692393270,0.59708513,69191.0,69187.0,0.05774431]
[1730692393472,0.072311,69183.0,69179.0,0.00076]
[1730692393670,0.433112,69182.0,69181.0,0.05774903]
[1730692393865,0.433112,69182.0,69179.0,0.05774903]
[1730692393866,0.072314,69180.0,69179.0,0.05774903]
[1730692395670,0.076314,69180.0,69179.0,0.05774903]
[1730692395871,0.076314,69180.0,69179.0,0.05874903]
[1730692396072,0.076314,69180.0,69179.0,0.001]
[1730692396881,0.137814,69180.0,69179.0,0.001]
[1730692398077,0.15668213,69180.0,69166.0,0.05774903]
[1730692398282,0.09118213,69167.0,69163.0,0.05774903]
[1730692398480,0.072332,69163.0,69162.0,0.05774903]
[1730692398867,0.09118213,69167.0,69161.0,0.14893116]
[1730692399067,0.072333,69162.0,69161.0,0.14893116]
[1730692399777,0.072333,69162.0,69161.0,0.14888156]
[1730692399984,0.072333,69162.0,69161.0,0.09118213]
[1730692400173,0.072333,69162.0,69161.0,0.46598213]
[1730692400686,0.072333,69162.0,69161.0,0.52366703]
[1730692401076,0.072333,69162.0,69161.0,0.53766703]
[1730692401275,0.072333,69162.0,69161.0,0.53765911]
[1730692401472,0.072333,69162.0,69161.0,0.68717524]
[1730692401679,0.072331,69165.0,69163.0,0.072332]
[1730692401883,0.072331,69165.0,69164.0,0.12128213]
[1730692402080,0.072331,69165.0,69164.0,0.17895318]
[1730692402277,0.072331,69165.0,69164.0,0.25128418]
[1730692403875,0.072331,69165.0,69164.0,0.26428418]
[1730692404076,0.072331,69165.0,69164.0,0.20661313]
[1730692405285,0.072331,69165.0,69164.0,0.22061313]
[1730692408984,0.072326,69169.0,69165.0,0.07233]
[1730692409181,0.072326,69169.0,69168.0,0.09118213]
[1730692410482,0.072326,69169.0,69168.0,0.10118213]
[1730692410983,0.03,69175.0,69168.0,0.10118213]
[1730692410984,0.072322,69173.0,69168.0,0.10118213]
[1730692412083,0.072322,69173.0,69168.0,0.11218213]
[1730692412385,0.072322,69173.0,69170.0,0.072325]
[1730692412583,0.40613272,69176.0,69174.0,0.072321]
[1730692412783,0.40493271,69176.0,69175.0,0.09118213]
[1730692413193,0.3608,69176.0,69175.0,0.16350213]
[1730692413489,0.465313,69182.0,69178.0,0.072316]
[1730692413678,0.465313,69182.0,69179.0,0.072315]
[1730692413679,0.04349373,69181.0,69179.0,0.072315]
[1730692413887,0.09118213,69181.0,69179.0,0.072315]
[1730692414395,0.09118213,69181.0,69180.0,0.072314]
[1730692414579,0.466593,69182.0,69175.0,0.14885318]
[1730692414782,0.465313,69182.0,69181.0,0.072313]
[1730692414984,0.50896667,69182.0,69181.0,0.072313]
[1730692415881,0.50996667,69182.0,69181.0,0.072313]
[1730692416083,0.15416667,69182.0,69181.0,0.073313]
[1730692416279,0.15316667,69182.0,69181.0,0.073313]
[1730692416581,0.15416667,69182.0,69181.0,0.074313]
[1730692418276,0.006,69182.0,69181.0,0.074313]
[1730692419083,0.0319,69199.0,69195.0,0.072299]
[1730692419287,0.0319,69199.0,69195.0,0.16348113]
[1730692419487,0.104195,69199.0,69195.0,0.16348113]
[1730692419892,0.40329543,69196.0,69195.0,0.16348113]
[1730692420487,0.49447756,69196.0,69195.0,0.072299]
[1730692420991,0.40329543,69196.0,69195.0,0.16348113]
[1730692421187,0.3608,69196.0,69195.0,0.16348113]
[1730692421495,0.3618,69196.0,69195.0,0.074299]
[1730692422892,0.3618,69196.0,69195.0,0.13194479]
[1730692423394,0.3618,69196.0,69195.0,0.074299]
[1730692424096,0.001,69196.0,69195.0,0.074299]
[1730692426188,0.07476807,69196.0,69195.0,0.074299]
[1730692426695,0.03513534,69196.0,69195.0,0.074299]
[1730692428388,0.03536165,69196.0,69195.0,0.074299]
[1730692429294,0.001,69196.0,69195.0,0.074299]
[1730692431688,0.03533475,69196.0,69195.0,0.074299]
[1730692432494,0.001,69196.0,69195.0,0.074299]
[1730692441414,0.001,69196.0,69195.0,0.16546876]
[1730692441415,0.07515401,69196.0,69195.0,0.16546876]
[1730692442304,0.07522133,69196.0,69195.0,0.16546876]
[1730692443316,0.001,69196.0,69195.0,0.16546876]
[1730692443507,0.12059551,69196.0,69195.0,0.16546876]
[1730692447009,0.04088845,69196.0,69195.0,0.16546876]
[1730692447210,0.12066535,69196.0,69195.0,0.16546876]
[1730692447814,0.001,69196.0,69195.0,0.25663852]
[1730692448112,0.15903573,69196.0,69195.0,0.61543852]
[1730692448311,0.00216801,69205.0,69195.0,1.07243453]
[1730692448518,0.00216801,69205.0,69204.0,0.433089]
[1730692449602,0.00216801,69205.0,69204.0,0.434089]
[1730692449603,0.00416801,69205.0,69204.0,0.434089]
[1730692450214,0.00516801,69205.0,69204.0,0.435089]
[1730692453113,0.00516801,69205.0,69204.0,0.47851032]
[1730692454029,0.00516801,69205.0,69204.0,0.074289]
[1730692454216,0.07745601,69205.0,69204.0,0.002]
[1730692456224,0.19481285,69205.0,69204.0,0.002]
[1730692456428,0.24749711,69205.0,69204.0,0.002]
[1730692457021,0.28967587,69205.0,69204.0,0.002]
[1730692458013,0.28967587,69205.0,69204.0,0.00108987]
[1730692459419,0.23699161,69205.0,69204.0,0.00108987]
[1730692461224,0.23692846,69205.0,69204.0,0.00108987]
[1730692461827,0.28955797,69205.0,69204.0,0.00108987]
[1730692462011,0.28955797,69205.0,69204.0,1e-08]
[1730692463231,0.11963477,69205.0,69204.0,1e-08]
[1730692474636,0.55311477,69205.0,69204.0,1e-08]
[1730692474933,0.58640381,69205.0,69204.0,1e-08]
[1730692475637,0.58628598,69205.0,69204.0,1e-08]
[1730692477429,0.73548833,69205.0,69204.0,1e-08]
[1730692479338,0.73548833,69205.0,69192.0,0.072302]
[1730692479339,0.072301,69193.0,69192.0,0.072302]
[1730692479528,0.16348778,69193.0,69192.0,0.072302]
[1730692479727,0.27956233,69193.0,69192.0,0.072302]
[1730692480133,0.20726133,69193.0,69181.0,0.45198678]
[1730692480329,0.072308,69187.0,69186.0,0.072307]
[1730692480532,0.14399327,69187.0,69186.0,0.072307]
[1730692482244,0.18838264,69187.0,69186.0,0.072307]
[1730692482543,0.19038264,69187.0,69186.0,0.072307]
[1730692482841,0.19238264,69187.0,69186.0,0.073307]
[1730692486343,0.076308,69187.0,69186.0,0.073307]
[1730692488837,0.004,69187.0,69186.0,0.073307]
[1730692493143,0.004,69187.0,69186.0,0.105807]
[1730692493347,0.03714697,69187.0,69186.0,0.105807]
[1730692495947,0.004,69187.0,69186.0,0.105807]
[1730692496449,0.07572765,69187.0,69186.0,0.105807]
[1730692498552,0.04258068,69187.0,69186.0,0.105807]
[1730692498753,0.1201172,69187.0,69186.0,0.105807]
[1730692499453,0.08697023,69187.0,69186.0,0.105807]
[1730692499643,0.03723599,69187.0,69186.0,0.105807]
[1730692499843,0.12021392,69187.0,69186.0,0.105807]
[1730692501453,0.004,69187.0,69186.0,0.105807]
[1730692501752,0.004,69187.0,69186.0,0.16363095]
[1730692502153,0.004,69187.0,69186.0,0.105807]
[1730692504756,0.004,69187.0,69186.0,0.27468552]
[1730692504941,0.004,69187.0,69186.0,0.20241534]
[1730692505147,0.3608,69194.0,69193.0,0.072301]
[1730692505343,0.3608,69194.0,69193.0,0.16348778]
[1730692506557,0.3648,69194.0,69193.0,0.16548778]
[1730692510457,0.3648,69194.0,69193.0,0.20806146]
[1730692511045,0.004,69194.0,69193.0,0.20806146]
[1730692511556,0.004,69194.0,69193.0,0.3766338]
[1730692512447,0.004,69194.0,69193.0,0.20806146]
[1730692514964,0.004,69194.0,69193.0,0.64162146]
[1730692515152,0.004,69194.0,69193.0,0.73280824]
[1730692515863,0.004,69194.0,69193.0,0.64162146]
[1730692516157,0.004,69194.0,69193.0,0.73280824]
[1730692516352,0.004,69194.0,69193.0,0.80512909]
[1730692516550,0.004,69194.0,69193.0,0.73280824]
[1730692517462,0.004,69194.0,69193.0,0.83524824]
[1730692519560,0.004,69194.0,69193.0,0.74406146]
[1730692520458,0.004,69194.0,69193.0,0.20806146]
[1730692520660,0.004,69194.0,69193.0,0.11687468]
[1730692521164,0.03740075,69194.0,69193.0,0.11687468]
[1730692521861,0.03742083,69194.0,69193.0,0.11687468]
[1730692522456,0.0763,69194.0,69193.0,0.11687468]
[1730692522754,0.004,69194.0,69193.0,0.11687468]
[1730692523866,0.004,69194.0,69193.0,0.074301]
[1730692525253,0.004,69194.0,69183.0,0.07232085]
[1730692525254,0.26992678,69194.0,69183.0,0.07232085]
[1730692525461,0.072323,69173.0,69170.0,0.072325]
[1730692525661,0.09118678,69171.0,69170.0,0.072325]
[1730692525859,0.07232,69175.0,69168.0,0.09118678]
[1730692526059,0.07232,69175.0,69174.0,0.072321]
[1730692528164,0.07332,69175.0,69174.0,0.072321]
[1730692528864,0.07332,69175.0,69174.0,0.073321]
[1730692529763,0.001,69175.0,69174.0,0.073321]
[1730692530957,0.001,69175.0,69174.0,0.21229772]
[1730692532563,0.0619,69190.0,69175.0,0.072319]
[1730692532870,0.36228,69191.0,69184.0,0.13897672]
[1730692533073,0.3608,69191.0,69190.0,0.072304]
[1730692534087,0.0313,69197.0,69195.0,0.072299]
[1730692534477,0.4671047,69198.0,69195.0,0.072299]
[1730692535388,0.4671047,69198.0,69195.0,0.073299]
[1730692535389,0.0454,69196.0,69195.0,0.073299]
[1730692536295,0.0564,69196.0,69195.0,0.074299]
[1730692539284,0.025,69196.0,69195.0,0.074299]
[1730692541888,0.097298,69196.0,69195.0,0.002]
[1730692542996,0.199578,69196.0,69195.0,0.002]
[1730692547389,0.23366133,69196.0,69195.0,0.002]
[1730692547698,0.199578,69196.0,69195.0,0.002]
[1730692549500,0.23366471,69196.0,69195.0,0.002]
[1730692550096,0.199578,69196.0,69195.0,0.002]
[1730692550402,0.23363637,69196.0,69195.0,0.002]
[1730692553801,0.199578,69196.0,69195.0,0.002]
[1730692555404,0.33855472,69196.0,69195.0,0.002]
[1730692556711,0.23627472,69196.0,69195.0,0.002]
[1730692565304,0.18848267,69196.0,69195.0,0.002]
[1730692566404,0.097298,69196.0,69195.0,0.002]
[1730692569014,0.13155979,69196.0,69195.0,0.002]
[1730692572711,0.13158469,69196.0,69195.0,0.002]
[1730692576017,0.097298,69196.0,69195.0,0.002]
[1730692577009,0.097298,69196.0,69184.0,0.07202937]
[1730692577010,0.072299,69195.0,69184.0,0.07202937]
[1730692577306,0.54316934,69185.0,69181.0,0.00216813]
[1730692577503,0.09118467,69182.0,69181.0,0.00216813]
[1730692577809,0.16349667,69182.0,69181.0,0.00216813]
[1730692578011,0.68832134,69182.0,69181.0,0.00216813]
[1730692578305,0.68832134,69182.0,69160.0,0.0021687]
[1730692578306,0.072328,69167.0,69165.0,0.07202937]
[1730692578507,0.16351267,69167.0,69162.0,0.07202937]
[1730692578709,0.072333,69162.0,69161.0,0.0313]
[1730692579313,0.2113406,69162.0,69161.0,0.0313]
[1730692579510,0.4998076,69162.0,69160.0,0.0021687]
[1730692579707,0.072334,69161.0,69160.0,0.0021687]
[1730692581313,0.072334,69161.0,69160.0,0.0041687]
[1730692582220,0.072334,69161.0,69160.0,0.0051687]
[1730692582716,0.072334,69161.0,69160.0,0.0031687]
[1730692582916,0.072334,69161.0,69160.0,0.0061687]
[1730692596030,0.64749756,69162.0,69153.0,0.05758193]
[1730692596225,0.64749756,69162.0,69113.0,0.14429603]
[1730692596226,0.072356,69140.0,69139.0,0.07192683]
[1730692596534,0.072356,69140.0,69112.0,0.3608]
[1730692596535,0.072385,69113.0,69112.0,0.3608]
[1730692596730,0.0376012,69117.0,69112.0,0.45916639]
[1730692597055,0.0376012,69117.0,69112.0,0.3608]
[1730692597226,0.072385,69113.0,69112.0,0.3608]
[1730692597529,0.072397,69101.0,69100.0,0.10025]
[1730692597729,0.6742846,69101.0,69100.0,0.10025]
[1730692597919,0.5722046,69101.0,69100.0,0.10025]
[1730692598328,0.433197,69101.0,69100.0,0.10025]
[1730692598537,0.2114046,69101.0,69100.0,0.10025]
[1730692599021,0.2124046,69101.0,69100.0,0.10025]
[1730692599924,0.2134046,69101.0,69100.0,0.08685]
[1730692600234,0.072424,69075.0,69070.0,0.3608]
[1730692600433,0.072424,69075.0,69071.0,0.04255459]
[1730692600727,0.072422,69078.0,69074.0,0.50891609]
[1730692600932,0.1390076,69085.0,69077.0,0.3608]
[1730692601130,0.072415,69084.0,69083.0,0.3608]
[1730692601338,0.00217207,69089.0,69079.0,0.07242]
[1730692601636,0.072416,69084.0,69081.0,0.072418]
[1730692601836,0.00217207,69089.0,69078.0,0.3608]
[1730692602034,0.36220001,69101.0,69086.0,0.3608]
[1730692602328,0.0724,69099.0,69095.0,0.3608]
[1730692602524,0.072402,69097.0,69095.0,0.3608]
[1730692602729,0.3608,69101.0,69095.0,0.3608]
[1730692603133,0.072402,69096.0,69095.0,0.3608]
[1730692604530,0.075402,69096.0,69095.0,0.3608]
[1730692605230,0.078402,69096.0,69095.0,0.3608]
[1730692605737,0.078402,69096.0,69095.0,0.433203]
[1730692606544,0.078402,69096.0,69095.0,0.3608]
[1730692614640,0.072401,69098.0,69095.0,0.5722106]
[1730692614827,0.072401,69098.0,69096.0,0.072402]
[1730692616038,0.072401,69098.0,69095.0,0.5005676]
[1730692616039,0.076401,69098.0,69097.0,0.072401]
[1730692616642,0.004,69098.0,69097.0,0.072401]
[1730692616842,0.076401,69098.0,69097.0,0.072401]
[1730692617237,0.081401,69098.0,69097.0,0.072401]
[1730692617440,0.009,69098.0,69097.0,0.072401]
[1730692617643,0.072395,69104.0,69103.0,0.072395]
[1730692617844,0.072395,69104.0,69103.0,0.433195]
[1730692619041,0.078395,69104.0,69103.0,0.434195]
[1730692619234,0.006,69104.0,69103.0,0.434195]
[1730692619437,0.011,69104.0,69103.0,0.434195]
[1730692620437,0.005,69104.0,69103.0,0.433195]
[1730692620643,0.01,69104.0,69103.0,0.433195]
[1730692620839,0.01,69104.0,69103.0,0.072395]
[1730692621040,0.01,69104.0,69097.0,0.40510044]
[1730692621041,0.005,69104.0,69097.0,0.36156]
[1730692621240,0.005,69104.0,69097.0,0.3608]
[1730692621241,0.0724,69098.0,69097.0,0.3608]
[1730692621943,0.0724,69098.0,69097.0,0.433201]
[1730692622342,0.0724,69098.0,69097.0,0.5722086]
[1730692622541,0.0734,69098.0,69097.0,0.5852086]
[1730692623744,0.0744,69098.0,69097.0,0.5992086]
[1730692625638,0.002,69098.0,69097.0,0.5992086]
[1730692629238,0.002,69098.0,69097.0,0.78215078]
[1730692630239,0.002,69098.0,69097.0,0.69546565]
[1730692630645,0.002,69098.0,69097.0,1.24442611]
[1730692630956,0.36297112,69117.0,69109.0,0.1390076]
[1730692630957,0.072388,69110.0,69109.0,0.1390076]
[1730692631158,0.072388,69110.0,69109.0,0.23526465]
[1730692633051,0.072388,69110.0,69109.0,0.23726465]
[1730692634045,0.072388,69110.0,69109.0,0.23926465]
[1730692634357,0.072388,69110.0,69109.0,0.31165365]
[1730692634570,0.072388,69110.0,69109.0,0.30965365]
[1730692634755,0.072388,69110.0,69109.0,0.30765365]
[1730692635059,0.072388,69110.0,69109.0,0.31065365]
[1730692635359,0.072388,69110.0,69109.0,0.38592234]
[1730692635552,0.072388,69110.0,69109.0,0.38292234]
[1730692635748,0.072388,69110.0,69109.0,0.38692234]
[1730692636144,0.072388,69110.0,69109.0,0.38691878]
[1730692636353,0.10618887,69110.0,69109.0,0.2183966]
[1730692636853,0.10618887,69110.0,69109.0,0.2153966]
[1730692637047,0.10618887,69110.0,69109.0,0.2203966]
[1730692637459,0.03380087,69110.0,69109.0,0.2213966]
[1730692637656,0.03380087,69110.0,69109.0,0.2529966]
[1730692638060,0.03380087,69110.0,69109.0,0.2559966]
[1730692638560,0.00217112,69117.0,69109.0,0.1836076]
[1730692638759,0.072383,69115.0,69114.0,0.072384]
[1730692638948,0.1064959,69115.0,69114.0,0.072384]
[1730692639565,0.0341129,69115.0,69114.0,0.072384]
[1730692639856,0.00217112,69117.0,69115.0,0.072382]
[1730692640046,0.1065674,69116.0,69115.0,0.072382]
[1730692640653,0.072384,69114.0,69113.0,0.1390076]
[1730692640861,0.072384,69114.0,69109.0,0.072388]
[1730692640862,0.072388,69110.0,69109.0,0.072388]
[1730692641146,0.10654199,69110.0,69109.0,0.072388]
[1730692641354,0.10654199,69110.0,69108.0,0.40579992]
[1730692641355,0.072389,69109.0,69108.0,0.40579992]